bitfinex-derivatives/quotes_ETHF0:USTF0_20250427
["timestamp","ask_amount","ask_price","bid_price","bid_amount"]
[1745774983783,7.30341583,1798.8,1798.7,1.6592]
[1745774984181,7.30341596,1798.8,1798.7,1.6592]
[1745774984886,7.21343,1798.8,1798.7,1.6592]
[1745774985186,7.30341598,1798.8,1798.7,1.6592]
[1745774985386,7.303416,1798.8,1798.7,1.6592]
[1745774985688,7.30341622,1798.8,1798.7,1.6592]
[1745774987184,7.3034177,1798.8,1798.7,1.6592]
[1745774988690,1.11155,1798.7,1798.6,1.6065]
[1745774988987,2.74945,1798.7,1798.6,3.3129]
[1745774996793,1.11155,1798.7,1798.6,4.42452]
[1745774997891,1.11155,1798.7,1798.6,3.3129]
[1745774998691,1.11155,1798.7,1798.6,4.42452]
[1745774999093,1.11155,1798.7,1798.6,3.3129]
[1745774999393,5.224,1798.8,1798.6,4.42452]
[1745774999690,6.33549,1798.8,1798.7,1.6353]
[1745775012807,4.74549,1798.8,1798.7,1.6353]
[1745775014206,5.5854,1799.0,1798.7,1.6353]
[1745775014503,1.20141192,1798.9,1798.8,0.8615]
[1745775015408,1.20141192,1798.9,1798.8,2.431]
[1745775015704,1.11143,1798.9,1798.8,2.431]
[1745775015904,2.77593,1798.9,1798.8,2.431]
[1745775018009,1.11155,1798.7,1798.6,4.0248]
[1745775018213,1.11168,1798.5,1798.4,5.6695]
[1745775018509,2.70105,1798.6,1798.4,7.62192]
[1745775019009,4.74259,1798.7,1798.5,1.11168]
[1745775019200,4.74259,1798.7,1798.5,2.76858]
[1745775019709,6.33199,1798.7,1798.5,2.76858]
[1745775020513,1.11162,1798.6,1798.5,2.76858]
[1745775021213,1.11162,1798.6,1798.5,1.6569]
[1745775021413,2.73072,1798.6,1798.5,1.6569]
[1745775022715,3.631,1798.7,1798.5,1.6569]
[1745775022912,4.74258,1798.7,1798.5,2.76852]
[1745775023314,4.74258,1798.7,1798.6,1.7167]
[1745775023908,6.45888,1798.7,1798.6,1.7167]
[1745775024208,2.82788,1798.7,1798.6,2.82832]
[1745775024409,2.82788,1798.7,1798.6,1.7167]
[1745775024812,2.82788,1798.7,1798.6,2.82832]
[1745775025010,1.7163,1798.7,1798.6,2.82832]
[1745775025210,1.11153,1798.8,1798.7,1.11155]
[1745775025414,1.11164,1798.6,1798.4,3.2078]
[1745775025614,1.11164,1798.6,1798.5,1.11168]
[1745775025815,1.11164,1798.6,1798.5,2.77588]
[1745775026009,1.96204,1798.6,1798.5,2.77588]
[1745775026913,1.96204,1798.6,1798.5,1.6642]
[1745775027115,1.11168,1798.5,1798.4,4.3195]
[1745775027415,2.71188,1798.5,1798.4,6.8942]
[1745775027916,1.6002,1798.5,1798.4,6.8942]
[1745775034215,1.6002,1798.5,1798.4,6.0428]
[1745775034421,2.4501,1798.5,1798.4,4.3195]
[1745775037625,2.4501,1798.5,1798.4,6.0546]
[1745775039421,2.4501,1798.5,1798.4,6.8427]
[1745775039622,1.6002,1798.5,1798.4,6.8427]
[1745775040921,3.629,1798.7,1798.4,5.731]
[1745775041120,7.94813,1799.1,1798.6,5.98682]
[1745775041327,4.4379,1799.1,1799.0,1.11137]
[1745775041524,4.5278744,1799.1,1799.0,1.11137]
[1745775041729,6.047,1799.1,1799.0,1.11137]
[1745775042129,7.15831,1799.1,1799.0,1.11137]
[1745775042628,7.15831,1799.1,1798.9,2.84718]
[1745775042824,2.72047,1799.0,1798.9,1.7358]
[1745775043221,2.72047,1799.0,1798.9,2.84723]
[1745775043421,1.6091,1799.0,1798.9,2.84723]
[1745775046830,2.72047,1799.0,1798.9,1.7358]
[1745775047022,1.11149,1798.8,1798.7,1.6444]
[1745775047223,3.64077,1798.9,1798.7,1.94624]
[1745775047423,1.7296,1798.8,1798.7,1.11154]
[1745775047722,2.515,1798.8,1798.7,1.11154]
[1745775049728,7.94815,1799.1,1798.9,1.11143]
[1745775049927,2.44498144,1799.0,1798.9,1.11143]
[1745775050226,2.355,1799.0,1798.9,1.11143]
[1745775050829,3.46637,1799.0,1798.9,1.11143]
[1745775051330,3.55634798,1799.0,1798.9,1.11143]
[1745775051629,3.55634798,1799.0,1798.8,2.74764]
[1745775051818,1.6697,1798.9,1798.8,2.74764]
[1745775052830,1.6697,1798.9,1798.8,1.6362]
[1745775053733,2.78113,1798.9,1798.8,1.6362]
[1745775054029,2.78113,1798.9,1798.8,2.74769]
[1745775054430,2.78113,1798.9,1798.8,1.6362]
[1745775054934,2.78113,1798.9,1798.8,2.74769]
[1745775055231,2.78113,1798.9,1798.8,1.6362]
[1745775060233,6.40813,1798.9,1798.8,1.6362]
[1745775062737,6.40813,1798.9,1798.7,1.96421]
[1745775062929,2.4093,1798.8,1798.7,1.96421]
[1745775063125,3.52079,1798.8,1798.7,1.96421]
[1745775063329,3.52079,1798.8,1798.7,3.57141]
[1745775063536,1.11155,1798.7,1798.6,3.2078]
[1745775063732,1.11155,1798.7,1798.5,0.8087]
[1745775063733,1.11165,1798.6,1798.4,6.75099]
[1745775063933,1.11165,1798.6,1798.5,1.6072]
[1745775067139,2.8176,1798.7,1798.5,2.71888]
[1745775067340,1.706,1798.7,1798.5,1.6072]
[1745775067643,2.81757,1798.7,1798.6,1.6883]
[1745775069741,0.8065,1798.8,1798.6,1.6883]
[1745775070042,1.11155,1798.7,1798.6,1.6883]
[1745775070440,2.4333,1798.8,1798.6,2.79992]
[1745775070638,4.4135,1798.9,1798.7,1.11155]
[1745775070833,5.52493,1798.9,1798.8,0.8295]
[1745775071038,5.61491291,1798.9,1798.8,0.8295]
[1745775071239,5.61491291,1798.9,1798.8,2.511]
[1745775071645,7.24171291,1798.9,1798.8,2.511]
[1745775072544,7.15173,1798.9,1798.8,2.511]
[1745775072745,7.2417113,1798.9,1798.8,2.511]
[1745775074042,7.2417113,1798.9,1798.8,0.8295]
[1745775074241,1.11149,1798.8,1798.7,2.4044]
[1745775074439,2.78369,1798.8,1798.7,2.4044]
[1745775075651,2.78369,1798.8,1798.7,1.5897]
[1745775077049,1.11162,1798.6,1798.5,0.8286]
[1745775077250,1.11168,1798.5,1798.4,5.6597]
[1745775077445,1.11168,1798.5,1798.4,6.4883]
[1745775077745,1.11168,1798.5,1798.4,7.60004]
[1745775077945,1.11168,1798.5,1798.4,6.4883]
[1745775079051,1.11168,1798.5,1798.4,3.2805]
[1745775081153,7.11165,1798.6,1798.4,4.39221]
[1745775081449,6.31672,1798.6,1798.5,1.6219]
[1745775082344,4.73862,1798.6,1798.5,1.6219]
[1745775083454,1.11168,1798.5,1798.4,4.8263]
[1745775083648,3.49948,1798.5,1798.4,6.5282]
[1745775085353,3.49948,1798.5,1798.4,5.6996]
[1745775085552,1.1118,1798.3,1798.2,4.31962]
[1745775085747,1.6216,1798.4,1798.2,5.16252]
[1745775085957,1.6216,1798.4,1798.3,1.6441]
[1745775086848,1.6216,1798.4,1798.3,2.7559]
[1745775087048,1.6216,1798.4,1798.3,3.5571]
[1745775087756,1.6283,1798.5,1798.3,3.5571]
[1745775087954,3.2686,1798.5,1798.4,2.71154]
[1745775088154,2.4318,1798.5,1798.4,2.71154]
[1745775088553,4.73866,1798.6,1798.4,2.71154]
[1745775088854,5.2673,1798.6,1798.5,4.30568]
[1745775090258,6.37892,1798.6,1798.5,3.194]
[1745775090459,7.21512,1798.6,1798.5,3.194]
[1745775090962,7.21512,1798.6,1798.5,2.3928]
[1745775091361,1.11168,1798.5,1798.4,1.11169]
[1745775091566,1.669,1798.5,1798.4,2.79559]
[1745775091955,4.4632,1798.6,1798.5,1.11168]
[1745775092154,4.4632,1798.6,1798.5,3.60718]
[1745775092356,6.1322,1798.6,1798.5,3.60718]
[1745775095157,3.627,1798.6,1798.5,3.60718]
[1745775097164,1.11158,1798.7,1798.5,3.60718]
[1745775097366,1.11158,1798.7,1798.6,2.509]
[1745775097558,3.57857049,1798.7,1798.6,2.509]
[1745775098367,3.57857375,1798.7,1798.6,2.509]
[1745775099960,3.57857226,1798.7,1798.6,2.509]
[1745775101368,3.57857259,1798.7,1798.6,2.509]
[1745775102868,3.48858,1798.7,1798.6,2.509]
[1745775103065,3.57857406,1798.7,1798.6,2.509]
[1745775104373,1.11162,1798.6,1798.5,0.8116]
[1745775104577,2.74292,1798.6,1798.5,2.5529]
[1745775106574,2.74292,1798.6,1798.5,3.3883]
[1745775113178,1.11162,1798.6,1798.5,3.3883]
[1745775119377,1.6987,1798.6,1798.4,3.2078]
[1745775119572,1.11168,1798.5,1798.4,3.2078]
[1745775119777,1.92728,1798.5,1798.4,4.9117]
[1745775119976,1.92728,1798.5,1798.4,5.7343]
[1745775120789,2.5486,1798.6,1798.4,6.84604]
[1745775121084,3.66022,1798.6,1798.5,2.5561]
[1745775122381,1.11168,1798.5,1798.4,4.0304]
[1745775122581,3.62408,1798.5,1798.4,3.2078]
[1745775124178,3.62408,1798.5,1798.4,4.7824]
[1745775124581,3.62408,1798.5,1798.4,5.89414]
[1745775124787,1.11166,1798.6,1798.4,5.89414]
[1745775125086,1.11166,1798.6,1798.5,2.4225]
[1745775125288,1.11166,1798.6,1798.5,3.2264]
[1745775128292,3.56961,1798.7,1798.5,3.2264]
[1745775128900,3.56961,1798.7,1798.5,4.33806]
[1745775129791,2.458,1798.7,1798.6,2.68332]
[1745775129992,3.626,1798.8,1798.7,1.11155]
[1745775130286,2.519,1799.0,1798.9,1.11143]
[1745775130585,1.11116,1799.4,1799.1,1.11131]
[1745775130790,2.59,1799.4,1799.3,1.11118]
[1745775130986,2.59,1799.4,1799.2,1.11121]
[1745775131178,3.70115,1799.4,1799.2,1.11121]
[1745775131384,1.7407,1799.3,1799.2,2.69681]
[1745775131585,5.59711,1799.6,1799.4,1.11111]
[1745775131789,0.08995334,1799.5,1799.3,3.50754]
[1745775131986,2.94172334,1799.5,1799.3,2.3964]
[1745775132189,2.85177,1799.5,1799.3,2.3964]
[1745775132789,1.7407,1799.5,1799.3,2.3964]
[1745775132990,2.85176,1799.5,1799.3,3.50758]
[1745775133184,2.85176,1799.5,1799.4,1.5856]
[1745775134592,1.7407,1799.5,1799.4,1.5856]
[1745775137180,1.7407,1799.5,1799.1,4.0582]
[1745775137181,1.8306468,1799.5,1799.1,4.0582]
[1745775137493,1.11132,1799.1,1798.9,4.31919]
[1745775137792,2.5842,1799.0,1798.7,2.495]
[1745775137987,1.7195,1798.9,1798.8,1.11147]
[1745775138696,1.7195,1798.9,1798.8,2.75177]
[1745775143699,5.59908,1799.0,1798.8,2.75177]
[1745775143997,4.4877,1799.0,1798.9,1.6433]
[1745775144996,4.4877,1799.0,1798.9,2.75473]
[1745775145398,6.2273,1799.0,1798.9,2.75473]
[1745775147095,7.33867,1799.0,1798.9,1.6433]
[1745775147292,7.33867,1799.0,1798.8,1.11145]
[1745775147494,1.6738,1798.9,1798.8,1.11145]
[1745775147793,1.6738,1798.9,1798.7,2.4513]
[1745775147992,1.6738,1798.9,1798.8,1.11149]
[1745775148890,1.6738,1798.9,1798.8,2.77979]
[1745775152890,5.59907,1799.0,1798.8,2.77979]
[1745775153096,5.59907,1799.0,1798.9,1.6586]
[1745775153402,5.59907,1799.0,1798.9,2.4543]
[1745775155703,5.59907,1799.0,1798.9,1.6586]
[1745775162509,4.4877,1799.0,1798.9,2.77003]
[1745775162701,3.623,1799.0,1798.9,2.77003]
[1745775163702,3.2078,1799.2,1799.1,1.11131]
[1745775164409,3.2078,1799.2,1799.1,3.59081]
[1745775165511,4.31904,1799.2,1799.1,2.4795]
[1745775165704,6.79684,1799.2,1799.1,2.4795]
[1745775166407,3.58904,1799.2,1799.1,2.4795]
[1745775166614,3.58904,1799.2,1799.1,3.59081]
[1745775167715,3.58904,1799.2,1799.1,2.4795]
[1745775168016,2.4778,1799.2,1799.1,3.59081]
[1745775168215,2.4778,1799.2,1799.1,1.11131]
[1745775168617,3.2634,1799.2,1799.1,1.11131]
[1745775168817,4.37464,1799.2,1799.0,3.56902]
[1745775169016,1.6249,1799.1,1799.0,3.56902]
[1745775173422,1.6275,1799.2,1799.1,1.11131]
[1745775173722,0.8419,1799.2,1799.1,3.59081]
[1745775175120,6.37879,1799.3,1799.2,1.11124]
[1745775175319,6.46874807,1799.3,1799.2,2.77414]
[1745775175622,7.32024807,1799.3,1799.2,2.77414]
[1745775176022,7.32024807,1799.3,1799.2,1.6629]
[1745775176220,1.11137,1799.0,1798.9,4.31918]
[1745775176420,1.6154,1799.2,1798.9,3.2078]
[1745775176624,1.6154,1799.2,1798.8,2.68785]
[1745775176625,1.11137,1799.0,1798.8,2.68785]
[1745775176822,1.6154,1798.9,1798.8,2.68785]
[1745775177521,2.72683,1798.9,1798.8,2.68785]
[1745775177725,1.6154,1798.9,1798.8,2.68785]
[1745775177920,2.72683,1798.9,1798.8,1.5764]
[1745775178122,1.11149,1798.8,1798.6,1.11158]
[1745775178312,1.6154,1798.7,1798.6,1.11158]
[1745775178512,4.4725,1799.0,1798.7,0.8441]
[1745775178717,2.81682256,1798.9,1798.7,2.78102]
[1745775179017,1.6154,1798.8,1798.7,2.78102]
[1745775180426,5.58391,1799.0,1798.8,1.11146]
[1745775180614,7.19471,1799.0,1798.8,2.76986]
[1745775181023,1.11143,1798.9,1798.8,2.76986]
[1745775181220,1.70076281,1798.9,1798.8,1.6584]
[1745775181527,1.6108,1798.9,1798.8,2.76989]
[1745775182026,2.81219297,1798.9,1798.8,1.6584]
[1745775182329,1.70076297,1798.9,1798.8,1.6584]
[1745775182527,1.6108,1798.9,1798.8,2.76989]
[1745775182928,5.5839,1799.0,1798.8,2.76989]
[1745775183129,6.0804,1799.0,1798.9,1.6571]
[1745775183330,7.19177,1799.0,1798.9,1.6571]
[1745775183628,1.11143,1798.9,1798.7,2.78101]
[1745775183828,2.71933,1798.9,1798.7,2.78101]
[1745775185926,1.6079,1798.9,1798.8,1.11149]
[1745775186125,4.4725,1799.0,1798.9,1.11143]
[1745775186326,5.58387,1799.0,1798.8,2.81476]
[1745775186522,7.18547,1799.0,1798.8,2.81476]
[1745775186719,5.2226,1799.0,1798.9,2.81473]
[1745775187024,1.1113,1799.2,1799.0,1.11133]
[1745775187225,1.1113,1799.2,1799.1,1.11131]
[1745775187424,1.2012672,1799.2,1799.0,6.6215]
[1745775187728,1.1113,1799.2,1799.1,1.7033]
[1745775188123,1.1113,1799.2,1799.1,2.81461]
[1745775188630,8.00742,1799.3,1799.1,2.81461]
[1745775188928,8.00742,1799.3,1799.2,1.5982]
[1745775189128,8.09738249,1799.3,1799.2,1.5982]
[1745775190231,8.09738249,1799.3,1799.2,2.70944]
[1745775190432,8.09738249,1799.3,1799.2,1.5982]
[1745775191035,8.09738159,1799.3,1799.2,1.5982]
[1745775191837,6.98616159,1799.3,1799.2,2.70944]
[1745775192629,6.0437,1799.3,1799.2,2.70944]
[1745775194132,7.15488,1799.3,1799.1,1.11128]
[1745775194434,2.74644,1799.2,1799.1,1.11128]
[1745775194832,1.11131,1799.1,1799.0,7.72532]
[1745775195034,1.5834,1799.1,1799.0,7.72532]
[1745775197339,4.4421,1799.3,1799.2,1.11124]
[1745775197528,4.53205789,1799.3,1799.2,1.11124]
[1745775197728,4.4421,1799.3,1799.2,1.11124]
[1745775197930,6.0919,1799.3,1799.2,1.11124]
[1745775198124,7.20308,1799.3,1799.2,1.11124]
[1745775198641,6.0919,1799.3,1799.2,1.11124]
[1745775199533,7.20308,1799.3,1799.2,1.11124]
[1745775199739,6.0919,1799.3,1799.2,1.11124]
[1745775200240,3.62,1799.3,1799.2,1.11124]
[1745775200738,4.4621,1799.3,1799.2,1.11124]
[1745775200939,6.25035945,1799.3,1799.2,1.11124]
[1745775201240,6.1604,1799.3,1799.2,1.11124]
[1745775201739,7.27158,1799.3,1799.2,1.11124]
[1745775202043,7.36153836,1799.3,1799.1,2.84657]
[1745775202242,1.6983,1799.2,1799.1,2.84657]
[1745775203642,1.6983,1799.2,1799.1,1.11127]
[1745775203941,2.5019,1799.2,1799.1,1.11127]
[1745775206845,3.61314,1799.2,1799.1,1.11127]
[1745775211545,2.5019,1799.2,1799.0,4.9182]
[1745775211745,1.11148,1798.9,1798.8,3.2078]
[1745775211952,1.11155,1798.7,1798.6,3.2078]
[1745775212345,1.11162,1798.6,1798.5,1.6567]
[1745775213745,1.11162,1798.6,1798.4,4.3195]
[1745775213943,2.5322,1798.5,1798.4,4.3195]
[1745775214441,2.5322,1798.5,1798.4,5.9149]
[1745775220853,2.5322,1798.5,1798.4,4.8032]
[1745775221153,2.5322,1798.5,1798.4,5.91494]
[1745775225351,2.5322,1798.5,1798.2,0.7918]
[1745775225556,2.75017,1798.4,1798.2,3.52206]
[1745775225752,1.6384,1798.3,1798.2,3.52206]
[1745775226553,5.96192,1798.5,1798.3,1.11174]
[1745775226756,6.4886,1798.5,1798.4,1.11174]
[1745775226955,6.57856407,1798.5,1798.4,1.11174]
[1745775227659,6.57856407,1798.5,1798.1,0.8226]
[1745775227858,1.11182,1798.3,1798.2,1.11185]
[1745775228157,2.75018,1798.4,1798.1,3.3045]
[1745775228358,2.75018,1798.4,1798.2,2.71141]
[1745775228553,1.1118,1798.3,1798.2,1.5996]
[1745775228749,2.7934,1798.3,1798.2,1.5996]
[1745775229062,2.7934,1798.3,1798.2,2.71146]
[1745775229358,1.6816,1798.3,1798.2,2.71146]
[1745775229953,1.6816,1798.3,1798.1,2.79798]
[1745775230156,1.11192,1798.1,1798.0,1.5996]
[1745775230351,4.31972,1798.1,1798.0,1.5996]
[1745775230656,4.31972,1798.1,1797.9,0.8045]
[1745775230657,1.11199,1798.0,1797.9,0.8045]
[1745775230856,1.6816,1798.0,1797.9,1.91655]
[1745775231252,3.2078,1798.1,1798.0,1.11199]
[1745775231452,3.2078,1798.1,1798.0,3.59589]
[1745775235466,5.2058,1798.3,1798.2,1.11186]
[1745775236360,1.5878,1798.3,1798.2,1.11186]
[1745775236561,3.2078,1798.4,1798.3,1.1118]
[1745775236866,3.2078,1798.4,1798.3,3.5649]
[1745775238468,4.31954,1798.4,1798.3,2.4531]
[1745775239468,4.40951727,1798.4,1798.3,2.4531]
[1745775239654,5.93654,1798.4,1798.3,2.4531]
[1745775239860,5.93654,1798.4,1798.3,3.5649]
[1745775240663,4.8248,1798.4,1798.3,3.5649]
[1745775241469,5.93654,1798.4,1798.3,3.5649]
[1745775241662,5.93654,1798.4,1798.3,2.4531]
[1745775241866,4.8248,1798.4,1798.3,3.5649]
[1745775242663,5.93654,1798.4,1798.3,2.4531]
[1745775244369,6.0265284,1798.4,1798.3,2.4531]
[1745775244566,5.93654,1798.4,1798.3,2.4531]
[1745775244870,6.02652949,1798.4,1798.3,2.4531]
[1745775245073,5.93654,1798.4,1798.3,2.4531]
[1745775246166,2.72874,1798.4,1798.3,2.4531]
[1745775246471,5.93654,1798.4,1798.3,2.4531]
[1745775247773,6.02654615,1798.4,1798.3,2.4531]
[1745775247967,6.02654615,1798.4,1798.3,1.5997]
[1745775249575,4.91480615,1798.4,1798.0,1.11198]
[1745775249870,1.1119,1798.2,1798.0,4.39978]
[1745775250070,2.466,1798.3,1798.1,1.11192]
[1745775250272,2.466,1798.3,1798.1,2.70082]
[1745775250273,3.57783,1798.3,1798.1,2.70082]
[1745775250660,3.57783,1798.3,1798.2,1.5889]
[1745775250863,3.6678302,1798.3,1798.2,1.5889]
[1745775251669,6.8756302,1798.3,1798.2,1.5889]
[1745775251869,3.2978002,1798.3,1798.2,2.70076]
[1745775252167,4.3196,1798.3,1798.2,2.70076]
[1745775252864,3.2078,1798.3,1798.2,2.70076]
[1745775254575,3.65767,1798.4,1798.2,2.70076]
[1745775254775,3.65767,1798.4,1798.0,1.6989]
[1745775254776,3.2078,1798.4,1798.3,4.4218]
[1745775255977,3.2078,1798.4,1798.3,3.31]
[1745775256183,5.99974,1798.4,1798.3,3.31]
[1745775256477,4.888,1798.4,1798.3,4.4218]
[1745775256679,3.2078,1798.4,1798.3,4.4218]
[1745775264790,5.2471,1798.5,1798.4,1.11174]
[1745775264984,5.2471,1798.5,1798.4,2.69164]
[1745775265178,9.56658,1798.5,1798.4,2.69164]
[1745775265591,9.56658,1798.5,1798.4,1.5799]
[1745775266393,9.56658,1798.5,1798.4,2.69164]
[1745775267294,9.56658,1798.5,1798.4,1.5799]
[1745775267990,8.4549,1798.5,1798.3,1.6119]
[1745775268191,1.7234,1798.4,1798.3,2.72368]
[1745775268990,6.8268,1798.5,1798.4,1.11174]
[1745775269195,8.5502,1798.5,1798.4,2.84194]
[1745775271997,9.66193,1798.5,1798.3,1.11178]
[1745775272196,1.7256,1798.4,1798.3,1.11178]
[1745775272800,4.9334,1798.4,1798.3,1.11178]
[1745775273402,3.2078,1798.4,1798.3,1.11178]
[1745775277705,5.3446,1798.5,1798.4,1.11174]
[1745775277898,8.5524,1798.5,1798.4,1.11174]
[1745775280107,5.3446,1798.5,1798.4,1.11174]
[1745775280301,9.66408,1798.5,1798.2,0.8185]
[1745775280503,2.4875,1798.4,1798.3,1.1118]
[1745775281605,2.4875,1798.4,1798.3,1.9423]
[1745775282307,6.8268,1798.5,1798.4,1.11174]
[1745775282507,8.5196,1798.5,1798.4,1.11174]
[1745775286003,9.63129,1798.5,1798.4,1.11174]
[1745775286706,9.63129,1798.5,1798.3,2.4039]
[1745775286906,2.4675,1798.4,1798.3,3.5157]
[1745775287709,5.6753,1798.4,1798.3,3.5157]
[1745775288110,3.2078,1798.4,1798.3,3.5157]
[1745775288617,3.619,1798.5,1798.4,1.11174]
[1745775288908,3.619,1798.5,1798.4,2.82044]
[1745775290512,3.619,1798.5,1798.4,1.11174]
[1745775290809,5.2899,1798.5,1798.4,1.11174]
[1745775291011,6.40158,1798.5,1798.4,1.11174]
[1745775292509,5.2899,1798.5,1798.4,1.11174]
[1745775292710,6.40158,1798.5,1798.4,1.11174]
[1745775293010,6.40158,1798.5,1798.3,1.11176]
[1745775293210,2.5048,1798.4,1798.3,1.11176]
[1745775297215,2.5048,1798.4,1798.3,1.92346]
[1745775302019,2.5048,1798.4,1798.3,1.11176]
[1745775302413,2.5048,1798.4,1798.3,2.74346]
[1745775309023,6.8268,1798.5,1798.4,1.11174]
[1745775309323,6.8268,1798.5,1798.4,4.40774]
[1745775310125,7.93848,1798.5,1798.4,4.40774]
[1745775310322,9.65978,1798.5,1798.4,2.4783]
[1745775310521,9.65978,1798.5,1798.4,2.78014]
[1745775312726,6.04078,1798.5,1798.4,2.78014]
[1745775314130,6.04078,1798.5,1798.4,1.6684]
[1745775314424,6.04078,1798.5,1798.4,2.78014]
[1745775314925,6.04078,1798.5,1798.4,1.6684]
[1745775316925,6.04078,1798.5,1798.3,1.11175]
[1745775317231,1.6283,1798.4,1798.3,2.79295]
[1745775325633,4.31948,1798.5,1798.4,1.11174]
[1745775325928,4.31948,1798.5,1798.4,3.56464]
[1745775326441,8.2078,1798.5,1797.8,3.2078]
[1745775326639,1.11199,1798.0,1797.9,1.6183]
[1745775327038,1.6287,1798.0,1797.5,1.1335]
[1745775327242,4.31999,1797.7,1797.5,4.43037]
[1745775327444,1.6287,1797.6,1797.5,3.3181]
[1745775327644,1.6287,1797.6,1797.5,4.4304]
[1745775327942,4.72613,1797.8,1797.6,1.11222]
[1745775328142,1.6287,1797.7,1797.6,2.73052]
[1745775330149,2.74087,1797.7,1797.6,1.6183]
[1745775330742,3.53077,1797.7,1797.5,2.81206]
[1745775330942,1.7057,1797.6,1797.5,0.8652]
[1745775331139,2.5564,1797.6,1797.5,0.8652]
[1745775331644,2.5564,1797.6,1797.5,1.9775]
[1745775331846,2.5564,1797.6,1797.5,0.8652]
[1745775332043,2.5564,1797.6,1797.5,1.9775]
[1745775333442,3.66863,1797.6,1797.5,0.0212]
[1745775334242,2.5564,1797.6,1797.5,1.1335]
[1745775334735,1.90213,1797.7,1797.5,1.9692]
[1745775334942,3.56383,1797.7,1797.5,1.9692]
[1745775335240,4.42793,1797.7,1797.5,1.948]
[1745775335439,1.6617,1797.6,1797.5,1.948]
[1745775337446,2.77396,1797.6,1797.3,4.0622]
[1745775337648,1.6617,1797.6,1797.5,1.1123]
[1745775339146,1.6617,1797.6,1797.5,1.9199]
[1745775339347,1.6617,1797.6,1797.5,1.1123]
[1745775340146,6.8218,1797.8,1797.6,1.11223]
[1745775340348,6.8218,1797.8,1797.7,1.11217]
[1745775340548,8.02388309,1797.8,1797.6,1.11219]
[1745775340748,0.8105,1797.7,1797.6,2.82769]
[1745775341244,1.92267,1797.7,1797.6,1.7155]
[1745775341442,1.92267,1797.7,1797.6,2.82773]
[1745775341642,1.11223,1797.6,1797.3,4.0622]
[1745775341845,1.11223,1797.6,1797.5,1.1123]
[1745775342545,1.11223,1797.6,1797.4,2.82783]
[1745775342744,2.75361,1797.7,1797.5,1.1123]
[1745775344848,5.96141,1797.7,1797.5,1.1123]
[1745775346855,1.11223,1797.6,1797.5,1.1123]
[1745775347253,5.96143,1797.7,1797.5,1.1123]
[1745775349658,4.8492,1797.7,1797.6,1.11223]
[1745775349854,5.13047,1797.7,1797.5,1.11226]
[1745775350657,1.92267,1797.7,1797.5,1.11226]
[1745775351857,5.13047,1797.7,1797.5,1.11226]
[1745775352161,1.92267,1797.7,1797.5,1.1123]
[1745775352454,1.92267,1797.7,1797.4,1.7155]
[1745775352658,1.92267,1797.7,1797.5,1.1123]
[1745775352858,0.8105,1797.7,1797.4,1.7155]
[1745775353059,4.72613,1797.8,1797.4,1.7155]
[1745775353060,3.614,1797.8,1797.7,1.11217]
[1745775354561,3.614,1797.8,1797.7,2.80867]
[1745775360861,4.72611,1797.8,1797.7,2.80867]
[1745775361162,3.614,1797.8,1797.7,2.80867]
[1745775361863,4.72611,1797.8,1797.7,2.80867]
[1745775362163,6.35741,1797.8,1797.7,2.80867]
[1745775364363,5.2453,1797.8,1797.7,2.80867]
[1745775364762,3.614,1797.8,1797.7,2.80867]
[1745775365564,3.2078,1797.9,1797.8,1.11211]
[1745775365760,3.2078,1797.9,1797.8,2.78041]
[1745775366061,4.31985,1797.9,1797.8,2.78041]
[1745775366366,3.2078,1797.9,1797.8,2.78041]
[1745775368159,4.31985,1797.9,1797.8,1.6683]
[1745775368360,3.48485,1797.9,1797.8,1.6683]
[1745775368767,6.69265,1797.9,1797.8,1.6683]
[1745775369069,6.69265,1797.9,1797.8,2.78041]
[1745775369267,6.69265,1797.9,1797.8,1.6683]
[1745775369565,3.48485,1797.9,1797.8,2.78041]
[1745775370265,10.5806,1797.9,1797.2,3.2078]
[1745775370471,1.11229,1797.6,1797.4,1.96974]
[1745775370671,2.3728,1797.5,1797.4,1.96974]
[1745775370868,2.3728,1797.5,1797.4,3.63744]
[1745775372874,3.4851,1797.5,1797.4,2.5251]
[1745775373167,3.4851,1797.5,1797.3,1.92031]
[1745775373168,1.11236,1797.4,1797.3,1.11242]
[1745775373364,3.48496,1797.4,1797.2,1.11244]
[1745775373867,1.11242,1797.3,1797.1,4.4181]
[1745775374074,2.69922,1797.3,1797.1,3.3056]
[1745775374671,1.5868,1797.3,1797.2,1.11248]
[1745775374871,1.5868,1797.3,1797.2,2.81418]
[1745775375572,2.69922,1797.3,1797.1,1.9274]
[1745775375774,0.785,1797.2,1797.1,3.6291]
[1745775376075,2.3973,1797.2,1797.1,3.6291]
[1745775376574,0.7858,1797.4,1797.3,1.11242]
[1745775376980,3.2453,1797.4,1797.3,1.11242]
[1745775377474,3.2453,1797.4,1797.3,1.93982]
[1745775377977,6.8198,1797.5,1797.4,1.11236]
[1745775378280,6.8198,1797.5,1797.4,3.64596]
[1745775380578,8.454,1797.5,1797.4,3.64596]
[1745775383874,10.4373,1797.5,1797.4,3.64596]
[1745775384073,1.1124,1797.4,1797.2,1.11246]
[1745775384278,0.7898,1797.3,1797.2,1.11246]
[1745775384681,2.4612,1797.3,1797.2,1.11246]
[1745775387180,1.6714,1797.3,1797.2,1.11246]
[1745775391386,1.6714,1797.3,1797.2,1.92546]